fUSD/lending_fUSD_20250620
["ID","MTS","AMOUNT","RATE_DAILY","PERIOD"]
[366713002,1750415654462,-998.16,0.00029853,4]
[366713003,1750415654472,-4396.87,0.00029853,4]
[366713004,1750415654482,-933.76,0.00029853,4]
[366713005,1750415654492,-897.22,0.00029853,4]
[366713006,1750415654502,-1489.74,0.00029853,4]
[366713007,1750415654512,-2632.99,0.00029853,4]
[366713008,1750415654523,-485.76,0.00029853,4]
[366713009,1750415654533,-2115.45,0.00029853,4]
[366713010,1750415654543,-1788.12,0.00029853,4]
[366713011,1750415654553,-969.59,0.00029853,4]
[366713012,1750415654564,-587.84,0.00029853,4]
[366713013,1750415654575,-747.47,0.00029853,4]
[366713014,1750415654585,-629.05,0.00029853,4]
[366713015,1750415654595,-1158.39,0.00029853,4]
[366713016,1750415654606,-4900.18,0.00029853,4]
[366713017,1750415654616,-490.0,0.00029853,4]
[366713018,1750415654626,-1552.28,0.00029853,4]
[366713019,1750415654636,-540.28,0.00029853,4]
[366713020,1750415654646,-1986.49,0.00029853,4]
[366713021,1750415654656,-2142.56,0.00029853,4]
[366713022,1750415654666,-675.46,0.00029853,4]
[366713023,1750415654676,-2131.24,0.00029853,4]
[366713024,1750415654686,-1335.47,0.00029853,4]
[366713025,1750415654697,-894.67,0.00029853,4]
[366713026,1750415654707,-3901.98,0.00029853,4]
[366713027,1750415654717,-694.78,0.00029853,4]
[366713028,1750415654727,-748.02,0.00029853,4]
[366713029,1750415654738,-2210.45,0.00029853,4]
[366713030,1750415654748,-1823.65,0.00029853,4]
[366713031,1750415654758,-1839.21,0.00029853,4]
[366713032,1750415654768,-951.3,0.00029853,4]
[366713033,1750415654778,-828.87,0.00029853,4]
[366713034,1750415654788,-496.35532185,0.00029853,4]
[366713035,1750415654798,-828.66,0.00029853,4]
[366713036,1750415654808,-2336.71,0.00029853,4]
[366713037,1750415654818,-1193.56,0.00029853,4]
[366713038,1750415654829,-1201.91,0.00029853,4]
[366713039,1750415654839,-1533.32,0.00029853,4]
[366713040,1750415654849,-2402.13,0.00029853,4]
[366713041,1750415654860,-2054.14,0.00029853,4]
[366713042,1750415654870,-490.0,0.00029863,4]
[366713043,1750415654880,-490.0,0.00029863,4]
[366713044,1750415654891,-553.94,0.00029863,4]
[366713045,1750415654901,-490.0,0.00029863,4]
[366713046,1750415654911,-490.0,0.00029863,4]
[366713048,1750415654921,-536.23,0.00029863,4]
[366713049,1750415654931,-686.65,0.00029863,4]
[366713051,1750415654941,-897.84,0.00029863,4]
[366713052,1750415654951,-793.14,0.00029863,4]
[366713053,1750415654961,-656.19,0.00029863,4]
[366713054,1750415654971,-624.06,0.00029863,4]
[366713055,1750415654981,-490.0,0.00029863,4]
[366713056,1750415654991,-568.83,0.00029863,4]
[366713057,1750415655001,-402.69,0.00029863,4]
[366713058,1750415655011,-697.89,0.00029863,4]
[366713059,1750415655021,-490.0,0.00029863,4]
[366713060,1750415655030,-724.36,0.00029863,4]
[366713061,1750415655040,-490.0,0.00029863,4]
[366713062,1750415655050,-503.73267506,0.00029863,4]
[366713063,1750415655060,-1029.22,0.00029863,4]
[366713064,1750415655070,-490.0,0.00029863,4]
[366713065,1750415655080,-490.0,0.00029863,4]
[366713066,1750415655090,-490.0,0.00029863,4]
[366713067,1750415655100,-490.0,0.00029863,4]
[366713068,1750415655110,-490.0,0.00029863,4]
[366713069,1750415655121,-817.57,0.00029863,4]
[366713070,1750415655131,-490.0,0.00029863,4]
[366713071,1750415655142,-490.0,0.00029863,4]
[366713072,1750415655152,-490.0,0.00029863,4]
[366713073,1750415655162,-860.55,0.00029863,4]
[366713074,1750415655172,-490.0,0.00029863,4]
[366713075,1750415655183,-490.0,0.00029863,4]
[366713076,1750415655192,-490.0,0.00029863,4]
[366713077,1750415655202,-490.0,0.00029863,4]
[366713078,1750415655212,-490.0,0.00029863,4]
[366713079,1750415655225,-490.0,0.00029863,4]
[366713080,1750415655236,-490.0,0.00029863,4]
[366713081,1750415655246,-490.0,0.00029863,4]
[366713082,1750415655256,-650.85,0.00029863,4]
[366713083,1750415655266,-490.0,0.00029863,4]
[366713084,1750415655276,-666.55,0.00029863,4]
[366713085,1750415655286,-490.0,0.00029863,4]
[366713086,1750415655296,-490.0,0.00029863,4]
[366713087,1750415655306,-490.0,0.00029863,4]
[366713088,1750415655317,-497.02,0.00029863,4]
[366713089,1750415655327,-490.0,0.00029863,4]
[366713090,1750415655337,-561.45,0.00029863,4]
[366713091,1750415655347,-490.0,0.00029863,4]
[366713092,1750415655357,-673.68,0.00029863,4]
[366713093,1750415655367,-490.0,0.00029863,4]
[366713094,1750415655377,-798.5,0.00029863,4]
[366713095,1750415655387,-490.0,0.00029863,4]
[366713096,1750415655396,-490.0,0.00029863,4]
[366713097,1750415655406,-490.0,0.00029863,4]
[366713098,1750415655415,-814.97,0.00029863,4]
[366713099,1750415655425,-2237.34,0.00029863,4]
[366713100,1750415655435,-490.0,0.00029863,4]
[366713101,1750415655446,-490.0,0.00029863,4]
[366713102,1750415655456,-997.34,0.00029863,4]
[366713103,1750415655466,-792.52,0.00029863,4]
[366713104,1750415655476,-490.0,0.00029863,4]
[366713105,1750415655487,-490.0,0.00029863,4]
[366713106,1750415655497,-490.0,0.00029863,4]
[366713107,1750415655507,-749.65,0.00029863,4]
[366713108,1750415655517,-490.0,0.00029863,4]
[366713109,1750415655527,-490.0,0.00029863,4]
[366713110,1750415655537,-870.19,0.00029863,4]
[366713111,1750415655547,-661.75,0.00029863,4]
[366713112,1750415655557,-508.02,0.00029863,4]
[366713113,1750415655567,-490.0,0.00029863,4]
[366713114,1750415655577,-490.0,0.00029863,4]
[366713115,1750415655586,-1294.95,0.00029863,4]
[366713116,1750415655596,-490.0,0.00029863,4]
[366713117,1750415655607,-490.0,0.00029863,4]
[366713118,1750415655617,-860.83,0.00029863,4]
[366713119,1750415655627,-1554.68,0.00029863,4]
[366713120,1750415655637,-490.0,0.00029863,4]
[366713121,1750415655647,-686.43,0.00029863,4]
[366713122,1750415655657,-490.0,0.00029863,4]
[366713123,1750415655667,-490.0,0.00029863,4]
[366713124,1750415655677,-620.11,0.00029863,4]
[366713125,1750415655687,-591.54,0.00029863,4]
[366713126,1750415655697,-1692.44,0.00029863,4]
[366713127,1750415655707,-757.27,0.00029863,4]
[366713128,1750415655717,-490.0,0.00029863,4]
[366713129,1750415655728,-1478.21,0.00029863,4]
[366713130,1750415655738,-495.21252589,0.00029863,4]
[366713131,1750415655749,-490.0,0.00029863,4]
[366713132,1750415655759,-1664.77,0.00029863,4]
[366713133,1750415655769,-513.53,0.00029863,4]
[366713134,1750415655779,-1643.07,0.00029863,4]
[366713135,1750415655789,-2421.62,0.00029863,4]
[366713136,1750415655800,-490.0,0.00029863,4]
[366713137,1750415655810,-1171.85,0.00029863,4]
[366713138,1750415655820,-1002.75,0.00029863,4]
[366713139,1750415655830,-490.0,0.00029863,4]
[366713140,1750415655840,-490.0,0.00029863,4]
[366713141,1750415655850,-490.0,0.00029863,4]
[366713142,1750415655860,-490.0,0.00029863,4]
[366713143,1750415655870,-582.26,0.00029863,4]
[366713144,1750415655880,-1052.23,0.00029863,4]
[366713145,1750415655890,-513.94,0.00029863,4]
[366713146,1750415655900,-1203.58,0.00029863,4]
[366713147,1750415655910,-1052.12,0.00029863,4]
[366713148,1750415655921,-490.0,0.00029863,4]
[366713149,1750415656102,-1116.54,0.00029863,4]
[366713150,1750415656113,-490.0,0.00029863,4]
[366713151,1750415656123,-593.05,0.00029863,4]
[366713152,1750415656133,-713.86,0.00029863,4]
[366713153,1750415656144,-576.72,0.00029863,4]
[366713154,1750415656154,-1207.78,0.00029863,4]
[366713155,1750415656164,-490.0,0.00029863,4]
[366713156,1750415656173,-885.97,0.00029863,4]
[366713157,1750415656184,-1286.94,0.00029863,4]
[366713158,1750415656194,-774.59,0.00029863,4]
[366713159,1750415656204,-663.64,0.00029863,4]
[366713160,1750415656215,-689.38,0.00029863,4]
[366713161,1750415656224,-556.07,0.00029863,4]
[366713162,1750415656235,-929.62,0.00029863,4]
[366713163,1750415656245,-852.86,0.00029863,4]
[366713164,1750415656255,-540.11,0.00029863,4]
[366713165,1750415656264,-490.0,0.00029863,4]
[366713166,1750415656274,-549.5,0.00029863,4]
[366713167,1750415656285,-490.0,0.00029863,4]
[366713168,1750415656295,-719.33,0.00029863,4]
[366713169,1750415656305,-502.60977682,0.00029863,4]
[366713170,1750415656315,-1178.9,0.00029863,4]
[366713171,1750415656326,-992.43,0.00029863,4]
[366713172,1750415656336,-490.0,0.00029863,4]
[366713173,1750415656346,-2120.13,0.00029863,4]
[366713174,1750415656357,-797.21,0.00029863,4]
[366713175,1750415656367,-2831.45,0.00029863,4]
[366713176,1750415656376,-1657.46,0.00029863,4]
[366713177,1750415656386,-1176.63,0.00029863,4]
[366713178,1750415656396,-835.13,0.00029863,4]
[366713179,1750415656406,-640.77,0.00029863,4]
[366713180,1750415656416,-955.18,0.00029863,4]
[366713181,1750415656426,-759.69,0.00029863,4]
[366713182,1750415656435,-495.19,0.00029863,4]
[366713183,1750415656446,-1620.75,0.00029863,4]
[366713184,1750415656455,-2608.35,0.00029863,4]
[366713185,1750415656465,-1487.07,0.00029863,4]
[366713186,1750415656475,-490.0,0.00029863,4]
[366713187,1750415656484,-620.7,0.00029863,4]
[366713188,1750415656494,-2196.02,0.00029863,4]
[366713189,1750415656504,-2048.55,0.00029863,4]
[366713190,1750415656514,-1452.89,0.00029863,4]
[366713191,1750415656523,-676.1,0.00029863,4]
[366713192,1750415656534,-490.0,0.00029863,4]
[366713193,1750415656544,-3078.01,0.00029863,4]
[366713194,1750415656553,-729.0,0.00029863,4]
[366713195,1750415656563,-646.89,0.00029863,4]
[366713196,1750415656573,-490.0,0.00029863,4]
[366713197,1750415656582,-692.86,0.00029863,4]
[366713198,1750415656592,-1111.1,0.00029863,4]
[366713199,1750415656603,-726.03,0.00029863,4]
[366713200,1750415656612,-896.01,0.00029863,4]
[366713201,1750415656622,-522.54,0.00029863,4]
[366713202,1750415656632,-817.65,0.00029863,4]
[366713203,1750415656642,-1212.05,0.00029863,4]
[366713204,1750415656652,-490.0,0.00029863,4]
[366713205,1750415656663,-1510.44,0.00029863,4]
[366713206,1750415656672,-563.12,0.00029863,4]
[366713207,1750415656682,-17404.6,0.00029863,4]
[366713208,1750415656692,-516.42,0.00029863,4]
[366713209,1750415656701,-1966.77,0.00029863,4]
[366713210,1750415656711,-499.64,0.00029863,4]
[366713211,1750415656721,-496.54,0.00029863,4]
[366713212,1750415656731,-682.61,0.00029863,4]
[366713213,1750415656742,-1292.76,0.00029863,4]
[366713214,1750415656753,-532.96,0.00029863,4]
[366713215,1750415656762,-497.64274949,0.00029863,4]
[366713216,1750415656773,-3089.65,0.00029863,4]
[366713217,1750415656783,-500.07418229,0.00029863,4]
[366713218,1750415656793,-1110.49,0.00029863,4]
[366713219,1750415656803,-875.85,0.00029863,4]
[366713220,1750415656814,-419.22724089,0.00029863,4]
[366713221,1750415656825,-808.72,0.00029863,4]
[366713222,1750415656836,-548.1,0.00029863,4]
[366713223,1750415656846,-1116.64,0.00029863,4]
[366713224,1750415656856,-741.55,0.00029863,4]
[366713225,1750415656865,-490.0,0.00029863,4]
[366713226,1750415656876,-490.0,0.00029863,4]
[366713227,1750415656886,-498.27352296,0.00029863,4]
[366713228,1750415656896,-900.32,0.00029863,4]
[366713229,1750415656906,-3388.66,0.00029863,4]
[366713230,1750415656917,-1386.85,0.00029863,4]
[366713231,1750415656928,-2512.9,0.00029863,4]
[366713232,1750415656938,-613.06,0.00029863,4]
[366713233,1750415656951,-7527.62,0.00029863,4]
[366713234,1750415656961,-7882.79,0.00029863,4]
[366713235,1750415656971,-741.74,0.00029863,4]
[366713236,1750415656980,-557.61,0.00029863,4]
[366713237,1750415656990,-2444.05,0.00029863,4]
[366713238,1750415657000,-1074.56,0.00029863,4]
[366713239,1750415657010,-716.85,0.00029863,4]
[366713240,1750415657019,-3776.02,0.00029863,4]
[366713241,1750415657029,-600.0,0.00029863,120]
[366713242,1750415657041,-759.29,0.00029863,4]
[366713243,1750415657050,-1533.1,0.00029863,4]
[366713244,1750415657060,-490.0,0.00029863,4]
[366713245,1750415657070,-5317.42,0.00029863,4]
[366713246,1750415657080,-508.46,0.00029863,4]
[366713247,1750415657091,-1702.18,0.00029863,4]
[366713248,1750415657101,-1502.12,0.00029863,4]
[366713249,1750415657112,-339.63481006,0.00029863,4]
[366713250,1750415657122,-9880.35,0.00029863,4]
[366713251,1750415657131,-670.44,0.00029863,4]
[366713252,1750415657142,-2012.16,0.00029863,4]
[366713253,1750415657152,-1936.5,0.00029863,4]
[366713254,1750415657161,-6404.69,0.00029863,4]
[366713255,1750415657171,-2380.6,0.00029863,4]
[366713256,1750415657181,-1141.27,0.00029863,4]
[366713257,1750415657191,-510.99,0.00029863,4]
[366713258,1750415657200,-691.59,0.00029863,4]
[366713259,1750415657210,-490.0,0.00029863,4]
[366713260,1750415657220,-2450.17,0.00029863,4]
[366713261,1750415657234,-1844.2,0.00029863,4]
[366713262,1750415657244,-490.0,0.00029863,4]
[366713263,1750415657254,-622.58,0.00029863,4]
[366713264,1750415657265,-1419.42,0.00029863,4]
[366713265,1750415657275,-1227.01,0.00029863,4]
[366713266,1750415657285,-17540.73,0.00029863,4]
[366713267,1750415657295,-490.0,0.00029863,4]
[366713268,1750415657305,-490.0,0.00029863,4]
[366713269,1750415657315,-490.0,0.00029863,4]
[366713270,1750415657324,-490.0,0.00029863,4]
[366713271,1750415657334,-5948.54,0.00029863,4]
[366713272,1750415657344,-957.68,0.00029863,4]
[366713273,1750415657354,-5372.22,0.00029863,4]
[366713274,1750415657364,-1499.27,0.00029863,4]
[366713275,1750415657374,-1594.4,0.00029863,4]
[366713276,1750415657383,-450.48542718,0.00029863,4]
[366713277,1750415657393,-1525.88,0.00029863,4]
[366713278,1750415657413,-18649.49,0.00029863,4]
[366713279,1750415657427,-490.0,0.00029863,4]
[366713280,1750415657437,-662.4,0.00029863,4]
[366713281,1750415657447,-11431.71,0.00029863,4]
[366713282,1750415657457,-574.02,0.00029863,4]
[366713283,1750415657467,-500.54503715,0.00029863,4]
[366713284,1750415657477,-2766.75,0.00029863,4]
[366713285,1750415657486,-490.0,0.00029863,4]
[366713286,1750415657496,-1747.3,0.00029863,4]
[366713287,1750415657505,-490.0,0.00029863,4]
[366713288,1750415657514,-521.31,0.00029863,4]
[366713289,1750415657524,-1639.8,0.00029863,4]
[366713290,1750415657534,-641.47,0.00029863,4]
[366713291,1750415657544,-1452.7,0.00029863,4]
[366713292,1750415657554,-766.28,0.00029863,4]
[366713293,1750415657563,-490.0,0.00029863,4]
[366713294,1750415657574,-1528.81,0.00029863,4]
[366713295,1750415657584,-2442.89,0.00029863,4]
[366713296,1750415657594,-490.0,0.00029863,4]
[366713297,1750415657604,-974.85,0.00029863,4]
[366713298,1750415657614,-525.8,0.00029863,4]
[366713299,1750415657624,-655.26,0.00029863,4]
[366713300,1750415657633,-6155.02,0.00029863,4]
[366713301,1750415657643,-1546.64,0.00029863,4]
[366713302,1750415657652,-952.09,0.00029863,4]
[366713303,1750415657662,-2556.54,0.00029863,4]
[366713304,1750415657672,-490.0,0.00029863,4]
[366713305,1750415657681,-490.0,0.00029863,4]
[366713306,1750415657691,-1078.67,0.00029863,4]
[366713307,1750415657700,-1698.38,0.00029863,4]
[366713308,1750415657710,-7770.54,0.00029863,4]
[366713309,1750415657720,-490.0,0.00029863,4]
[366713310,1750415657730,-490.0,0.00029863,4]
[366713311,1750415657740,-713.18,0.00029863,4]
[366713312,1750415657750,-490.0,0.00029863,4]
[366713313,1750415657759,-1078.51,0.00029863,4]
[366713314,1750415657770,-565.57,0.00029863,4]
[366713315,1750415657780,-517.68034053,0.00029863,4]
[366713316,1750415657790,-490.0,0.00029873,4]
[366713317,1750415657801,-709.67,0.00029873,4]
[366713318,1750415657811,-490.0,0.00029873,4]
[366713319,1750415657820,-716.73,0.00029873,4]
[366713320,1750415657830,-879.88,0.00029873,4]
[366713321,1750415657840,-470.1194279,0.00029873,4]
[366713322,1750415657857,-490.0,0.00029873,4]
[366713323,1750415657867,-490.0,0.00029873,4]
[366713324,1750415657876,-237.44677689,0.00029873,4]
[366713325,1750415657886,-490.0,0.00029873,4]
[366713326,1750415657896,-490.0,0.00029873,4]
[366713327,1750415657907,-490.0,0.00029873,4]
[366713328,1750415657917,-1218.9,0.00029873,4]
[366713329,1750415657927,-901.28,0.00029873,4]
[366713330,1750415657937,-507.19,0.00029873,4]
[366713331,1750415657947,-490.0,0.00029873,4]
[366713332,1750415657958,-584.6,0.00029873,4]
[366713333,1750415657968,-490.0,0.00029873,4]
[366713334,1750415657978,-490.0,0.00029873,4]
[366713335,1750415657988,-624.83,0.00029873,4]
[366713336,1750415657998,-947.23,0.00029873,4]
[366713337,1750415658008,-497.34,0.00029873,4]
[366713338,1750415658018,-1160.0,0.00029873,4]
[366713339,1750415658029,-682.25,0.00029873,4]
[366713340,1750415658039,-676.69,0.00029873,4]
[366713341,1750415658050,-798.57,0.00029873,4]
[366713342,1750415658061,-490.0,0.00029873,4]
[366713343,1750415658071,-490.0,0.00029873,4]
[366713344,1750415658082,-490.0,0.00029873,4]
[366713345,1750415658092,-490.0,0.00029873,4]
[366713346,1750415658102,-490.0,0.00029873,4]
[366713347,1750415658112,-994.26,0.00029873,4]
[366713348,1750415658123,-490.0,0.00029873,4]
[366713349,1750415658133,-490.0,0.00029873,4]
[366713350,1750415658143,-504.86,0.00029873,4]
[366713351,1750415658154,-1262.16,0.00029873,4]
[366713352,1750415658165,-526.89,0.00029873,4]
[366713353,1750415658175,-619.87821449,0.00029873,4]
[366713354,1750415658186,-490.0,0.00029873,4]
[366713355,1750415658196,-562.08,0.00029873,4]
[366713356,1750415658207,-545.75,0.00029873,4]
[366713357,1750415658217,-1061.69,0.00029873,4]
[366713358,1750415658227,-809.96,0.00029873,4]
[366713359,1750415658238,-631.0,0.00029873,4]
[366713360,1750415658250,-1378.13,0.00029873,4]
[366713361,1750415658261,-490.0,0.00029873,4]
[366713362,1750415658271,-490.0,0.00029873,4]
[366713363,1750415658283,-490.0,0.00029873,4]
[366713364,1750415658293,-559.26,0.00029873,4]
[366713365,1750415658311,-707.03,0.00029873,4]
[366713366,1750415658322,-490.0,0.00029873,4]
[366713367,1750415658334,-2021.51,0.00029873,4]
[366713368,1750415658345,-547.36,0.00029873,4]
[366713369,1750415658355,-1831.85,0.00029873,4]
[366713370,1750415658366,-606.95,0.00029873,4]
[366713371,1750415658376,-1476.65,0.00029873,4]
[366713372,1750415658386,-490.0,0.00029873,4]
[366713373,1750415658396,-1005.12,0.00029873,4]
[366713374,1750415658406,-1516.56,0.00029873,4]
[366713375,1750415658416,-600.95,0.00029873,4]
[366713376,1750415658427,-490.0,0.00029873,4]
[366713377,1750415658437,-490.0,0.00029873,4]
[366713378,1750415658448,-490.0,0.00029873,4]
[366713379,1750415658458,-302.3,0.00029873,4]
[366713380,1750415658467,-1853.92,0.00029873,4]
[366713381,1750415658477,-490.0,0.00029873,4]
[366713382,1750415658488,-1207.48,0.00029873,4]
[366713383,1750415658498,-970.42,0.00029873,4]
[366713384,1750415658508,-1085.47,0.00029873,4]
[366713385,1750415658518,-555.86,0.00029873,4]
[366713386,1750415658529,-1321.89,0.00029873,4]
[366713387,1750415658539,-907.27,0.00029873,4]
[366713388,1750415658549,-490.0,0.00029873,4]
[366713389,1750415658560,-490.0,0.00029873,4]
[366713390,1750415658570,-495.92808722,0.00029873,4]
[366713391,1750415658580,-1835.37,0.00029873,4]
[366713392,1750415658590,-490.0,0.00029873,4]
[366713393,1750415658600,-556.59,0.00029873,4]
[366713394,1750415658610,-1052.99,0.00029873,4]
[366713395,1750415658621,-490.0,0.00029873,4]
[366713396,1750415658632,-567.01,0.00029873,4]
[366713397,1750415658642,-492.0,0.00029873,4]
[366713398,1750415658652,-819.36,0.00029873,4]
[366713399,1750415658662,-2175.07,0.00029873,4]
[366713400,1750415658672,-490.0,0.00029873,4]
[366713401,1750415658683,-789.56,0.00029873,4]
[366713402,1750415658693,-1474.82,0.00029873,4]
[366713403,1750415658704,-490.0,0.00029873,4]
[366713404,1750415658714,-1752.57,0.00029873,4]
[366713405,1750415658725,-490.0,0.00029873,4]
[366713406,1750415658735,-490.0,0.00029873,4]
[366713407,1750415658744,-2581.66,0.00029873,4]
[366713408,1750415658762,-490.0,0.00029873,4]
[366713409,1750415658772,-1705.52,0.00029873,4]
[366713410,1750415658783,-1306.7,0.00029873,4]
[366713411,1750415658793,-525.6,0.00029873,4]
[366713412,1750415658802,-737.94,0.00029873,4]
[366713413,1750415658812,-490.0,0.00029873,4]
[366713414,1750415658823,-490.0,0.00029873,4]
[366713415,1750415658833,-616.11,0.00029873,4]
[366713416,1750415658842,-749.2,0.00029873,4]
[366713417,1750415658853,-1450.49,0.00029873,4]
[366713418,1750415658862,-733.41,0.00029873,4]
[366713419,1750415658873,-490.0,0.00029873,4]
[366713420,1750415658883,-2517.34,0.00029873,4]
[366713421,1750415658893,-647.98,0.00029873,4]
[366713422,1750415658903,-1420.61,0.00029873,4]
[366713423,1750415658913,-666.21,0.00029873,4]
[366713424,1750415658923,-490.0,0.00029873,4]
[366713425,1750415658934,-798.3,0.00029873,4]
[366713426,1750415658944,-569.79232127,0.00029873,4]
[366713427,1750415658954,-490.0,0.00029873,4]
[366713428,1750415658964,-490.0,0.00029873,4]
[366713429,1750415658974,-629.3,0.00029873,4]
[366713430,1750415658984,-744.22,0.00029873,4]
[366713431,1750415658994,-490.0,0.00029873,4]
[366713432,1750415659004,-824.71,0.00029873,4]
[366713433,1750415659014,-1579.86,0.00029873,4]
[366713434,1750415659024,-317.96528129,0.00029873,4]
[366713435,1750415659034,-509.05,0.00029873,4]
[366713436,1750415659044,-2238.49,0.00029873,4]
[366713437,1750415659054,-597.0,0.00029873,4]
[366713438,1750415659064,-490.0,0.00029873,4]
[366713439,1750415659075,-933.51,0.00029873,4]
[366713440,1750415659085,-822.58,0.00029873,4]
[366713441,1750415659096,-838.77,0.00029873,4]
[366713442,1750415659107,-504.68,0.00029873,4]
[366713443,1750415659117,-507.81,0.00029873,4]
[366713444,1750415659128,-490.0,0.00029873,4]
[366713445,1750415659138,-215.79735889,0.00029873,4]
[366713446,1750415659149,-572.5,0.00029873,4]
[366713447,1750415659159,-490.0,0.00029873,4]
[366713448,1750415659168,-490.0,0.00029873,4]
[366713449,1750415659178,-1129.55,0.00029873,4]
[366713450,1750415659187,-858.91,0.00029873,4]
[366713451,1750415659198,-490.0,0.00029873,4]
[366713452,1750415659219,-800.69,0.00029873,4]
[366713453,1750415659230,-1036.77,0.00029873,4]
[366713454,1750415659240,-490.0,0.00029873,4]
[366713455,1750415659253,-1310.63,0.00029873,4]
[366713456,1750415659264,-490.0,0.00029873,4]
[366713457,1750415659275,-867.83,0.00029873,4]
[366713458,1750415659286,-1236.78,0.00029873,4]
[366713459,1750415659297,-545.19,0.00029873,4]
[366713460,1750415659307,-490.0,0.00029873,4]
[366713461,1750415659317,-509.27,0.00029873,4]
[366713462,1750415659327,-500.97657974,0.00029873,4]
[366713463,1750415659337,-1804.01,0.00029873,4]
[366713464,1750415659347,-1718.47,0.00029873,4]
[366713465,1750415659357,-345.02178147,0.00029873,4]
[366713466,1750415659368,-528.49,0.00029873,4]
[366713467,1750415659378,-490.0,0.00029873,4]
[366713468,1750415659388,-808.69,0.00029873,4]
[366713469,1750415659398,-490.0,0.00029873,4]
[366713470,1750415659408,-490.0,0.00029873,4]
[366713471,1750415659418,-726.13,0.00029873,4]
[366713472,1750415659427,-490.0,0.00029874,4]
[366713473,1750415659438,-924.0,0.00029874,4]
[366713474,1750415659449,-490.0,0.00029874,4]
[366713475,1750415659459,-490.0,0.00029874,4]
[366713476,1750415659469,-555.64,0.00029874,4]
[366713477,1750415659480,-490.0,0.00029874,4]
[366713478,1750415659490,-560.67,0.00029874,4]
[366713479,1750415659500,-714.6,0.00029874,4]
[366713480,1750415659510,-490.0,0.00029874,4]
[366713481,1750415659520,-490.0,0.00029874,4]
[366713482,1750415659530,-584.97,0.00029874,4]
[366713483,1750415659540,-490.0,0.00029874,4]
[366713484,1750415659549,-528.72,0.00029874,4]
[366713485,1750415659560,-490.0,0.00029874,4]
[366713486,1750415659571,-490.0,0.00029874,4]
[366713487,1750415659581,-490.0,0.00029874,4]
[366713488,1750415659592,-490.0,0.00029874,4]
[366713489,1750415659602,-595.37,0.00029874,4]
[366713490,1750415659613,-597.21859899,0.000299,3]
[366713491,1750415659623,-775.47665243,0.000299,21]
[366713492,1750415659633,-150.0,0.00029916,7]
[366713493,1750415659642,-151.0,0.00029945,3]
[366713494,1750415659657,-324.0,0.0002995,2]
[366713495,1750415659667,-324.0,0.0002995,2]
[366713496,1750415659677,-202.0,0.0002995,30]
[366713497,1750415659687,-239.84119403,0.00029966,2]
[366713498,1750415659696,-218.0,0.0002999,2]
[366713499,1750415659707,-324.0,0.0002999,2]
[366713500,1750415659717,-211.0,0.0002999,2]
[366713501,1750415659727,-209.0,0.0002999,2]
[366713502,1750415659739,-276.580722,0.00029998,60]
[366713503,1750415659748,-558856.86289116,0.0003,2]